[Event "Titled Tuesday Blitz March 21 Early 2023"]
[White "Garv Gaur"]
[Black "Perez Gormaz, Matias"]
[WhiteFideId "45030839"]
[BlackFideId "3406342"]
[WhiteElo "2068"]
[BlackElo "2362"]
[Result "0-1"]
[Round "08"]
[TimeControl "180+2"]
[Date "2023.03.21"]
[WhiteClock "0:00:04"]
[BlackClock "0:00:02"]

1. Nf3 {[%clk 0:03:00]}  d5 {[%clk 0:02:59]} 2. g3 {[%clk 0:03:00]}  Nd7 {[%clk 0:02:59]} 3. d4 {[%clk 0:02:59]}  Nb6 {[%clk 0:02:59]} 4. Bg2 {[%clk 0:02:58]}  Bf5 {[%clk 0:02:59]} 5. O-O {[%clk 0:02:57]}  e6 {[%clk 0:02:58]} 6. b3 {[%clk 0:02:46]}  c6 {[%clk 0:02:57]} 7. Bb2 {[%clk 0:02:45]}  Nf6 {[%clk 0:02:56]} 8. Nbd2 {[%clk 0:02:41]}  h6 {[%clk 0:02:55]} 9. c4 {[%clk 0:02:41]}  a5 {[%clk 0:02:51]} 10. a3 {[%clk 0:02:35]}  Nbd7 {[%clk 0:02:40]} 11. Re1 {[%clk 0:02:26]}  Be7 {[%clk 0:02:38]} 12. Ne5 {[%clk 0:02:20]}  Nxe5 {[%clk 0:02:29]} 13. dxe5 {[%clk 0:02:20]}  Nd7 {[%clk 0:02:22]} 14. e4 {[%clk 0:02:20]}  dxe4 {[%clk 0:02:23]} 15. Nxe4 {[%clk 0:02:20]}  Bxe4 {[%clk 0:02:23]} 16. Bxe4 {[%clk 0:02:21]}  Nc5 {[%clk 0:02:20]} 17. Qg4 {[%clk 0:02:11]}  O-O {[%clk 0:02:16]} 18. Bc2 {[%clk 0:02:07]}  Qd2 {[%clk 0:02:15]} 19. Re2 {[%clk 0:02:06]}  Qg5 {[%clk 0:02:13]} 20. Qf3 {[%clk 0:02:01]}  h5 {[%clk 0:01:50]} 21. h3 {[%clk 0:01:43]}  Qh6 {[%clk 0:01:23]} 22. h4 {[%clk 0:01:40]}  Rfd8 {[%clk 0:01:18]} 23. Rae1 {[%clk 0:01:37]}  g6 {[%clk 0:01:12]} 24. Kg2 {[%clk 0:01:22]}  Rd7 {[%clk 0:01:10]} 25. Bc3 {[%clk 0:01:18]}  Na6 {[%clk 0:00:50]} 26. Ra1 {[%clk 0:01:02]}  Qf8 {[%clk 0:00:46]} 27. g4 {[%clk 0:00:46]}  hxg4 {[%clk 0:00:44]} 28. Qxg4 {[%clk 0:00:47]}  Qh6 {[%clk 0:00:31]} 29. Rh1 {[%clk 0:00:45]}  Qh5 {[%clk 0:00:28]} 30. Qxh5 {[%clk 0:00:41]}  gxh5 {[%clk 0:00:29]} 31. Rh3 {[%clk 0:00:41]}  Bxa3 {[%clk 0:00:24]} 32. Rg3+ {[%clk 0:00:37]}  Kf8 {[%clk 0:00:25]} 33. Bxa5 {[%clk 0:00:22]}  Bb4 {[%clk 0:00:22]} 34. Bxb4+ {[%clk 0:00:16]}  Nxb4 {[%clk 0:00:23]} 35. Bh7 {[%clk 0:00:15]}  Ke7 {[%clk 0:00:15]} 36. Rg7 {[%clk 0:00:15]}  Ra3 {[%clk 0:00:11]} 37. Re3 {[%clk 0:00:13]}  Ra2 {[%clk 0:00:03]} 38. Rf3 {[%clk 0:00:14]}  Kf8 {[%clk 0:00:03]} 39. Rg8+ {[%clk 0:00:14]}  Ke7 {[%clk 0:00:04]} 40. Rb8 {[%clk 0:00:11]}  Nc2 {[%clk 0:00:03]} 41. Be4 {[%clk 0:00:07]}  Ne1+ {[%clk 0:00:03]} 42. Kg3 {[%clk 0:00:07]}  Nxf3 {[%clk 0:00:04]} 43. Bxf3 {[%clk 0:00:08]}  Rb2 {[%clk 0:00:05]} 44. Bxh5 {[%clk 0:00:07]}  Rxb3+ {[%clk 0:00:05]} 45. Kg4 {[%clk 0:00:07]}  Rb4 {[%clk 0:00:05]} 46. Kg5 {[%clk 0:00:07]}  Rxc4 {[%clk 0:00:06]} 47. Bg4 {[%clk 0:00:07]}  Rc5 {[%clk 0:00:05]} 48. f4 {[%clk 0:00:07]}  Rc1 {[%clk 0:00:06]} 49. h5 {[%clk 0:00:07]}  Rg1 {[%clk 0:00:07]} 50. h6 {[%clk 0:00:07]}  Rd2 {[%clk 0:00:04]} 51. h7 {[%clk 0:00:07]}  Rdg2 {[%clk 0:00:03]} 52. Re8+ {[%clk 0:00:05]}  Kxe8 {[%clk 0:00:03]} 53. h8=Q+ {[%clk 0:00:06]}  Kd7 {[%clk 0:00:04]} 54. Kf6 {[%clk 0:00:06]}  Rxg4 {[%clk 0:00:04]} 55. Qb8 {[%clk 0:00:06]}  Rg6+ {[%clk 0:00:03]} 56. Kxf7 {[%clk 0:00:07]}  Rg7+ {[%clk 0:00:03]} 57. Kf6 {[%clk 0:00:04]}  R1g6# {[%clk 0:00:02]} 0-1


[Site "https://www.chess.com"]

[Event "Titled Tuesday Blitz March 21 Early 2023"]
[White "Matinian, Nikita"]
[Black "Rom, Jasper"]
[WhiteFideId "24129100"]
[BlackFideId "2023733"]
[WhiteElo "2422"]
[BlackElo "2233"]
[Result "1-0"]
[Round "08"]
[TimeControl "180+2"]
[Date "2023.03.21"]
[WhiteClock "0:00:14"]
[BlackClock "0:00:07"]

1. e4 {[%clk 0:02:10]}  e6 {[%clk 0:02:59]} 2. d3 {[%clk 0:02:09]}  d5 {[%clk 0:02:59]} 3. Nd2 {[%clk 0:02:10]}  Nf6 {[%clk 0:02:58]} 4. g3 {[%clk 0:02:08]}  dxe4 {[%clk 0:02:57]} 5. dxe4 {[%clk 0:02:03]}  Bc5 {[%clk 0:02:57]} 6. Bg2 {[%clk 0:02:02]}  e5 {[%clk 0:02:53]} 7. Ngf3 {[%clk 0:02:00]}  Nc6 {[%clk 0:02:53]} 8. O-O {[%clk 0:02:00]}  O-O {[%clk 0:02:53]} 9. c3 {[%clk 0:01:59]}  a5 {[%clk 0:02:53]} 10. Qe2 {[%clk 0:01:55]}  b6 {[%clk 0:02:50]} 11. Nc4 {[%clk 0:01:55]}  Ba6 {[%clk 0:02:48]} 12. b3 {[%clk 0:01:56]}  a4 {[%clk 0:02:41]} 13. Bg5 {[%clk 0:01:55]}  h6 {[%clk 0:02:38]} 14. Rad1 {[%clk 0:01:51]}  Qe7 {[%clk 0:02:37]} 15. Bxf6 {[%clk 0:01:22]}  Qxf6 {[%clk 0:02:37]} 16. b4 {[%clk 0:01:22]}  Bd6 {[%clk 0:02:20]} 17. a3 {[%clk 0:01:09]}  Qe6 {[%clk 0:02:06]} 18. Nfd2 {[%clk 0:01:08]}  Rfd8 {[%clk 0:01:51]} 19. Rfe1 {[%clk 0:01:08]}  Be7 {[%clk 0:01:50]} 20. Bf1 {[%clk 0:01:07]}  Bg5 {[%clk 0:01:42]} 21. Nf3 {[%clk 0:01:04]}  Be7 {[%clk 0:01:35]} 22. h4 {[%clk 0:00:56]}  f6 {[%clk 0:01:20]} 23. Kh2 {[%clk 0:00:55]}  Rxd1 {[%clk 0:01:17]} 24. Rxd1 {[%clk 0:00:54]}  Rd8 {[%clk 0:01:18]} 25. Rxd8+ {[%clk 0:00:53]}  Nxd8 {[%clk 0:01:18]} 26. Nfd2 {[%clk 0:00:52]}  Nb7 {[%clk 0:01:14]} 27. Bh3 {[%clk 0:00:48]}  Qf7 {[%clk 0:00:58]} 28. Bc8 {[%clk 0:00:46]}  Bf8 {[%clk 0:00:42]} 29. Kg2 {[%clk 0:00:34]}  Qe8 {[%clk 0:00:39]} 30. Qg4 {[%clk 0:00:28]}  Qc6 {[%clk 0:00:26]} 31. Be6+ {[%clk 0:00:22]}  Kh8 {[%clk 0:00:26]} 32. Bd5 {[%clk 0:00:22]}  Qe8 {[%clk 0:00:22]} 33. Ne3 {[%clk 0:00:17]}  Nd6 {[%clk 0:00:18]} 34. h5 {[%clk 0:00:15]}  Bc8 {[%clk 0:00:18]} 35. Qg6 {[%clk 0:00:13]}  Qxg6 {[%clk 0:00:17]} 36. hxg6 {[%clk 0:00:14]}  Bd7 {[%clk 0:00:17]} 37. f4 {[%clk 0:00:14]}  exf4 {[%clk 0:00:14]} 38. gxf4 {[%clk 0:00:15]}  Be7 {[%clk 0:00:14]} 39. f5 {[%clk 0:00:15]}  Nc8 {[%clk 0:00:11]} 40. Be6 {[%clk 0:00:12]}  Bxe6 {[%clk 0:00:09]} 41. fxe6 {[%clk 0:00:13]}  Bd6 {[%clk 0:00:10]} 42. Nf5 {[%clk 0:00:14]}  Ne7 {[%clk 0:00:10]} 43. Nc4 {[%clk 0:00:14]}  Bf4 {[%clk 0:00:07]} 44. Nxe7 {[%clk 0:00:14]} 1-0


[Site "https://www.chess.com"]

[Event "Titled Tuesday Blitz March 21 Early 2023"]
[White "Santos Flores, Alberto"]
[Black "Lewtak, Damian"]
[WhiteFideId "3601234"]
[BlackFideId "1141724"]
[WhiteElo "2235"]
[BlackElo "2302"]
[Result "0-1"]
[Round "08"]
[TimeControl "180+2"]
[Date "2023.03.21"]
[WhiteClock "0:00:02"]
[BlackClock "0:00:43"]

1. e4 {[%clk 0:03:00]}  c5 {[%clk 0:02:59]} 2. Nf3 {[%clk 0:03:00]}  d6 {[%clk 0:02:59]} 3. Bb5+ {[%clk 0:02:57]}  Bd7 {[%clk 0:02:55]} 4. Bxd7+ {[%clk 0:02:57]}  Nxd7 {[%clk 0:02:55]} 5. c4 {[%clk 0:02:56]}  g6 {[%clk 0:02:48]} 6. d4 {[%clk 0:02:56]}  cxd4 {[%clk 0:02:47]} 7. Nxd4 {[%clk 0:02:57]}  Bg7 {[%clk 0:02:47]} 8. Nc3 {[%clk 0:02:56]}  Ngf6 {[%clk 0:02:47]} 9. Be3 {[%clk 0:02:55]}  a6 {[%clk 0:02:43]} 10. f3 {[%clk 0:02:54]}  Rc8 {[%clk 0:02:41]} 11. b3 {[%clk 0:02:53]}  b5 {[%clk 0:02:36]} 12. O-O {[%clk 0:02:26]}  bxc4 {[%clk 0:02:36]} 13. bxc4 {[%clk 0:02:27]}  O-O {[%clk 0:02:36]} 14. Qa4 {[%clk 0:02:21]}  Nc5 {[%clk 0:02:31]} 15. Qa3 {[%clk 0:02:17]}  Nfd7 {[%clk 0:02:28]} 16. Rab1 {[%clk 0:02:14]}  Ne5 {[%clk 0:02:26]} 17. Bf2 {[%clk 0:01:23]}  Nxc4 {[%clk 0:02:22]} 18. Qc1 {[%clk 0:01:22]}  Nd3 {[%clk 0:02:21]} 19. Qc2 {[%clk 0:01:20]}  Nxf2 {[%clk 0:02:12]} 20. Qxf2 {[%clk 0:01:21]}  Ne5 {[%clk 0:01:46]} 21. Nd5 {[%clk 0:01:19]}  e6 {[%clk 0:01:43]} 22. Nb4 {[%clk 0:00:58]}  a5 {[%clk 0:01:40]} 23. Nbc2 {[%clk 0:00:58]}  Rc4 {[%clk 0:01:30]} 24. Qd2 {[%clk 0:00:56]}  Qc7 {[%clk 0:01:24]} 25. Kh1 {[%clk 0:00:42]}  Qc5 {[%clk 0:01:06]} 26. Rfd1 {[%clk 0:00:33]}  Rc8 {[%clk 0:00:52]} 27. Ne3 {[%clk 0:00:33]}  Bh6 {[%clk 0:00:48]} 28. Rb3 {[%clk 0:00:02]}  Rxd4 {[%clk 0:00:41]} 29. Qxd4 {[%clk 0:00:02]}  Qxd4 {[%clk 0:00:42]} 30. Rxd4 {[%clk 0:00:02]}  Bxe3 {[%clk 0:00:43]} 0-1


[Site "https://www.chess.com"]

[Event "Titled Tuesday Blitz March 21 Early 2023"]
[White "Itgelt, Khuyagtsogt"]
[Black "Ben Artzi, Ido"]
[WhiteFideId "4902912"]
[BlackFideId "2810913"]
[WhiteElo "2227"]
[BlackElo "2204"]
[Result "1-0"]
[Round "08"]
[TimeControl "180+2"]
[Date "2023.03.21"]
[WhiteClock "0:00:44"]
[BlackClock "0:00:11"]

1. d4 {[%clk 0:03:00]}  Nf6 {[%clk 0:02:12]} 2. c4 {[%clk 0:02:59]}  e6 {[%clk 0:02:10]} 3. Nf3 {[%clk 0:02:59]}  d5 {[%clk 0:02:09]} 4. g3 {[%clk 0:03:00]}  dxc4 {[%clk 0:02:08]} 5. Bg2 {[%clk 0:03:00]}  c5 {[%clk 0:02:08]} 6. O-O {[%clk 0:03:00]}  Nc6 {[%clk 0:02:08]} 7. Ne5 {[%clk 0:03:01]}  Bd7 {[%clk 0:02:03]} 8. Nxd7 {[%clk 0:02:54]}  Qxd7 {[%clk 0:02:03]} 9. dxc5 {[%clk 0:02:55]}  Bxc5 {[%clk 0:01:58]} 10. Qxd7+ {[%clk 0:02:54]}  Kxd7 {[%clk 0:01:56]} 11. Nd2 {[%clk 0:02:52]}  c3 {[%clk 0:01:52]} 12. bxc3 {[%clk 0:02:53]}  Rhd8 {[%clk 0:01:42]} 13. Nb3 {[%clk 0:02:52]}  Bb6 {[%clk 0:01:38]} 14. c4 {[%clk 0:02:52]}  Rac8 {[%clk 0:01:35]} 15. c5 {[%clk 0:02:49]}  Bc7 {[%clk 0:01:35]} 16. Bb2 {[%clk 0:02:44]}  Ke7 {[%clk 0:01:26]} 17. Rfd1 {[%clk 0:02:44]}  Rxd1+ {[%clk 0:01:24]} 18. Rxd1 {[%clk 0:02:45]}  Rd8 {[%clk 0:01:24]} 19. Rc1 {[%clk 0:02:40]}  g6 {[%clk 0:01:02]} 20. Kf1 {[%clk 0:02:35]}  Nd5 {[%clk 0:01:02]} 21. a3 {[%clk 0:02:33]}  Be5 {[%clk 0:00:58]} 22. Bxe5 {[%clk 0:02:28]}  Nxe5 {[%clk 0:00:59]} 23. Na5 {[%clk 0:02:29]}  b6 {[%clk 0:00:49]} 24. cxb6 {[%clk 0:01:54]}  axb6 {[%clk 0:00:50]} 25. Nb3 {[%clk 0:01:43]}  Ra8 {[%clk 0:00:44]} 26. Bxd5 {[%clk 0:01:16]}  exd5 {[%clk 0:00:39]} 27. Rc7+ {[%clk 0:00:54]}  Kd6 {[%clk 0:00:38]} 28. Rb7 {[%clk 0:00:53]}  Nd7 {[%clk 0:00:25]} 29. Nd4 {[%clk 0:00:52]}  Ra5 {[%clk 0:00:16]} 30. e3 {[%clk 0:00:52]}  f5 {[%clk 0:00:15]} 31. h4 {[%clk 0:00:52]}  h5 {[%clk 0:00:15]} 32. Ke2 {[%clk 0:00:50]}  Ra6 {[%clk 0:00:13]} 33. Kf3 {[%clk 0:00:47]}  Nc5 {[%clk 0:00:12]} 34. Rg7 {[%clk 0:00:45]}  Rxa3 {[%clk 0:00:12]} 35. Rxg6+ {[%clk 0:00:45]}  Ke5 {[%clk 0:00:11]} 36. Nc6# {[%clk 0:00:44]} 1-0


[Site "https://www.chess.com"]

[Event "Titled Tuesday Blitz March 21 Early 2023"]
[White "Rozman, Levy"]
[Black "Jakubowska, Anna"]
[WhiteFideId "2039877"]
[BlackFideId "1121952"]
[WhiteElo "2376"]
[BlackElo "2001"]
[Result "1-0"]
[Round "08"]
[TimeControl "180+2"]
[Date "2023.03.21"]
[WhiteClock "0:01:11"]
[BlackClock "0:00:17"]

1. e4 {[%clk 0:03:00]}  c6 {[%clk 0:02:56]} 2. d4 {[%clk 0:03:00]}  d5 {[%clk 0:02:55]} 3. f3 {[%clk 0:03:00]}  dxe4 {[%clk 0:02:55]} 4. fxe4 {[%clk 0:03:01]}  e5 {[%clk 0:02:53]} 5. Nf3 {[%clk 0:03:01]}  exd4 {[%clk 0:02:52]} 6. Bc4 {[%clk 0:03:00]}  Be6 {[%clk 0:02:31]} 7. Nbd2 {[%clk 0:02:57]}  Bxc4 {[%clk 0:02:22]} 8. Nxc4 {[%clk 0:02:56]}  Bc5 {[%clk 0:02:15]} 9. O-O {[%clk 0:02:43]}  Ne7 {[%clk 0:02:12]} 10. Ng5 {[%clk 0:02:33]}  d3+ {[%clk 0:01:43]} 11. Kh1 {[%clk 0:02:33]}  Rf8 {[%clk 0:01:11]} 12. Nxh7 {[%clk 0:02:09]}  Rh8 {[%clk 0:01:09]} 13. Qh5 {[%clk 0:02:08]}  Ng6 {[%clk 0:01:04]} 14. Ne5 {[%clk 0:01:36]}  dxc2 {[%clk 0:00:24]} 15. Nxg6 {[%clk 0:01:32]}  Rxh7 {[%clk 0:00:17]} 16. Qxh7 {[%clk 0:01:27]}  Qd1 {[%clk 0:00:17]} 17. Qg8+ {[%clk 0:01:22]}  Kd7 {[%clk 0:00:16]} 18. Qxf7+ {[%clk 0:01:22]}  Kc8 {[%clk 0:00:17]} 19. Bf4 {[%clk 0:01:11]} 1-0


[Site "https://www.chess.com"]

[Event "Titled Tuesday Blitz March 21 Early 2023"]
[White "Carrasco Miranda, Andres"]
[Black "Tregubov, Pavel V."]
[WhiteFideId "3405990"]
[BlackFideId "4115341"]
[WhiteElo "2183"]
[BlackElo "2425"]
[Result "0-1"]
[Round "08"]
[TimeControl "180+2"]
[Date "2023.03.21"]
[WhiteClock "0:00:33"]
[BlackClock "0:00:19"]

1. d4 {[%clk 0:03:00]}  Nf6 {[%clk 0:02:59]} 2. c4 {[%clk 0:03:00]}  e6 {[%clk 0:02:59]} 3. g3 {[%clk 0:03:01]}  Bb4+ {[%clk 0:02:57]} 4. Nd2 {[%clk 0:03:00]}  O-O {[%clk 0:02:47]} 5. Bg2 {[%clk 0:02:59]}  Re8 {[%clk 0:02:43]} 6. Nf3 {[%clk 0:02:54]}  a5 {[%clk 0:02:39]} 7. O-O {[%clk 0:02:53]}  Bf8 {[%clk 0:02:38]} 8. e4 {[%clk 0:02:50]}  d6 {[%clk 0:02:38]} 9. b3 {[%clk 0:02:44]}  e5 {[%clk 0:02:38]} 10. Bb2 {[%clk 0:02:44]}  Nc6 {[%clk 0:02:32]} 11. h3 {[%clk 0:02:44]}  exd4 {[%clk 0:02:18]} 12. Nxd4 {[%clk 0:02:44]}  Nxd4 {[%clk 0:02:17]} 13. Bxd4 {[%clk 0:02:45]}  g6 {[%clk 0:02:16]} 14. Re1 {[%clk 0:02:25]}  Bg7 {[%clk 0:02:16]} 15. Qc2 {[%clk 0:02:19]}  Bd7 {[%clk 0:02:11]} 16. Rad1 {[%clk 0:02:16]}  Qc8 {[%clk 0:02:10]} 17. Kh2 {[%clk 0:02:16]}  Ng4+ {[%clk 0:02:10]} 18. hxg4 {[%clk 0:02:14]}  Bxd4 {[%clk 0:02:11]} 19. f3 {[%clk 0:02:02]}  Bg7 {[%clk 0:01:53]} 20. Nb1 {[%clk 0:02:00]}  a4 {[%clk 0:01:26]} 21. b4 {[%clk 0:01:58]}  b5 {[%clk 0:01:26]} 22. cxb5 {[%clk 0:01:55]}  Bxb5 {[%clk 0:01:24]} 23. Nc3 {[%clk 0:01:56]}  Qb8 {[%clk 0:01:14]} 24. a3 {[%clk 0:01:48]}  Bd7 {[%clk 0:01:08]} 25. g5 {[%clk 0:01:42]}  c6 {[%clk 0:01:01]} 26. Qd2 {[%clk 0:01:29]}  Be6 {[%clk 0:00:57]} 27. Ne2 {[%clk 0:01:28]}  Rd8 {[%clk 0:00:56]} 28. Nf4 {[%clk 0:01:26]}  Bb3 {[%clk 0:00:57]} 29. Rc1 {[%clk 0:01:26]}  d5 {[%clk 0:00:55]} 30. exd5 {[%clk 0:01:15]}  cxd5 {[%clk 0:00:55]} 31. Re7 {[%clk 0:01:10]}  Ra7 {[%clk 0:00:54]} 32. Rce1 {[%clk 0:01:05]}  Rxe7 {[%clk 0:00:51]} 33. Rxe7 {[%clk 0:01:06]}  d4 {[%clk 0:00:47]} 34. Nd3 {[%clk 0:00:55]}  Qd6 {[%clk 0:00:42]} 35. Re4 {[%clk 0:00:50]}  Bd5 {[%clk 0:00:39]} 36. Rf4 {[%clk 0:00:45]}  Bc4 {[%clk 0:00:38]} 37. Nc5 {[%clk 0:00:42]}  Re8 {[%clk 0:00:28]} 38. Re4 {[%clk 0:00:39]}  Re5 {[%clk 0:00:24]} 39. f4 {[%clk 0:00:36]}  Rxe4 {[%clk 0:00:23]} 40. Bxe4 {[%clk 0:00:37]}  h6 {[%clk 0:00:19]} 41. gxh6 {[%clk 0:00:36]}  Bxh6 {[%clk 0:00:19]} 42. Kg2 {[%clk 0:00:36]}  Bg7 {[%clk 0:00:19]} 43. Bd3 {[%clk 0:00:32]}  Bd5+ {[%clk 0:00:19]} 44. Be4 {[%clk 0:00:33]}  Bxe4+ {[%clk 0:00:19]} 45. Nxe4 {[%clk 0:00:33]}  Qd5 {[%clk 0:00:19]} 0-1


[Site "https://www.chess.com"]

[Event "Titled Tuesday Blitz March 21 Early 2023"]
[White "Zamorano, Jorge"]
[Black "Rios Escobar, Adan"]
[WhiteFideId "173770"]
[BlackFideId "3403645"]
[WhiteElo "2331"]
[BlackElo "2420"]
[Result "1-0"]
[Round "08"]
[TimeControl "180+2"]
[Date "2023.03.21"]
[WhiteClock "0:00:08"]
[BlackClock "0:00:01"]

1. e4 {[%clk 0:03:00]}  c5 {[%clk 0:02:57]} 2. Nf3 {[%clk 0:02:58]}  d6 {[%clk 0:02:57]} 3. d4 {[%clk 0:02:59]}  cxd4 {[%clk 0:02:58]} 4. Nxd4 {[%clk 0:02:59]}  Nf6 {[%clk 0:02:59]} 5. Nc3 {[%clk 0:02:59]}  a6 {[%clk 0:03:00]} 6. Bc4 {[%clk 0:03:00]}  e6 {[%clk 0:02:59]} 7. Bb3 {[%clk 0:03:00]}  b5 {[%clk 0:02:59]} 8. Bg5 {[%clk 0:03:00]}  Be7 {[%clk 0:02:58]} 9. Qf3 {[%clk 0:03:01]}  Ra7 {[%clk 0:02:35]} 10. O-O-O {[%clk 0:02:58]}  Qc7 {[%clk 0:02:26]} 11. Be3 {[%clk 0:02:18]}  Rb7 {[%clk 0:02:18]} 12. g4 {[%clk 0:02:19]}  Nbd7 {[%clk 0:01:40]} 13. g5 {[%clk 0:01:53]}  Ne5 {[%clk 0:01:36]} 14. Qg3 {[%clk 0:01:43]}  Nfg4 {[%clk 0:01:32]} 15. Bd2 {[%clk 0:01:28]}  Qb6 {[%clk 0:01:21]} 16. Nce2 {[%clk 0:01:22]}  Nc4 {[%clk 0:00:39]} 17. Qxg4 {[%clk 0:01:21]}  e5 {[%clk 0:00:31]} 18. Qxc8+ {[%clk 0:01:05]}  Bd8 {[%clk 0:00:27]} 19. Nc6 {[%clk 0:00:55]}  O-O {[%clk 0:00:25]} 20. Nxd8 {[%clk 0:00:37]}  Rxd8 {[%clk 0:00:25]} 21. Qh3 {[%clk 0:00:36]}  a5 {[%clk 0:00:21]} 22. a3 {[%clk 0:00:29]}  a4 {[%clk 0:00:15]} 23. Bxc4 {[%clk 0:00:27]}  bxc4 {[%clk 0:00:15]} 24. Bb4 {[%clk 0:00:28]}  Qxf2 {[%clk 0:00:12]} 25. Nc3 {[%clk 0:00:26]}  Rxb4 {[%clk 0:00:11]} 26. axb4 {[%clk 0:00:25]}  a3 {[%clk 0:00:11]} 27. bxa3 {[%clk 0:00:26]}  Ra8 {[%clk 0:00:11]} 28. Nd5 {[%clk 0:00:24]}  Qa7 {[%clk 0:00:06]} 29. Qc3 {[%clk 0:00:22]}  Qa6 {[%clk 0:00:06]} 30. Nc7 {[%clk 0:00:20]}  Qa7 {[%clk 0:00:06]} 31. Nxa8 {[%clk 0:00:19]}  Qxa8 {[%clk 0:00:06]} 32. Rxd6 {[%clk 0:00:19]}  h5 {[%clk 0:00:06]} 33. gxh6 {[%clk 0:00:18]}  Qb8 {[%clk 0:00:04]} 34. Rhd1 {[%clk 0:00:13]}  Qb7 {[%clk 0:00:04]} 35. hxg7 {[%clk 0:00:11]}  Qxe4 {[%clk 0:00:03]} 36. Rd8+ {[%clk 0:00:11]}  Kxg7 {[%clk 0:00:03]} 37. Qg3+ {[%clk 0:00:11]}  Kf6 {[%clk 0:00:03]} 38. R1d6+ {[%clk 0:00:09]}  Ke7 {[%clk 0:00:04]} 39. R8d7+ {[%clk 0:00:07]}  Kf8 {[%clk 0:00:03]} 40. Rd8+ {[%clk 0:00:07]}  Ke7 {[%clk 0:00:03]} 41. R6d7+ {[%clk 0:00:08]}  Ke6 {[%clk 0:00:02]} 42. Qh3+ {[%clk 0:00:09]}  Kf6 {[%clk 0:00:01]} 43. Qh6+ {[%clk 0:00:08]} 1-0


[Site "https://www.chess.com"]

[Event "Titled Tuesday Blitz March 21 Early 2023"]
[White "Domingo Nunez, Ruben"]
[Black "Shukhman, Anna"]
[WhiteFideId "22245570"]
[BlackFideId "54180058"]
[WhiteElo "2404"]
[BlackElo "2125"]
[Result "1-0"]
[Round "08"]
[TimeControl "180+2"]
[Date "2023.03.21"]
[WhiteClock "0:00:07"]
[BlackClock "0:00:27"]

1. b3 {[%clk 0:02:57]}  Nf6 {[%clk 0:02:59]} 2. Bb2 {[%clk 0:02:58]}  g6 {[%clk 0:03:00]} 3. Nf3 {[%clk 0:02:56]}  Bg7 {[%clk 0:03:00]} 4. e3 {[%clk 0:02:56]}  O-O {[%clk 0:02:59]} 5. Be2 {[%clk 0:02:57]}  d6 {[%clk 0:03:00]} 6. O-O {[%clk 0:02:57]}  e5 {[%clk 0:03:00]} 7. d4 {[%clk 0:02:57]}  exd4 {[%clk 0:02:58]} 8. exd4 {[%clk 0:02:57]}  b6 {[%clk 0:02:57]} 9. d5 {[%clk 0:02:57]}  Nbd7 {[%clk 0:02:55]} 10. c4 {[%clk 0:02:56]}  a5 {[%clk 0:02:54]} 11. Nd4 {[%clk 0:02:56]}  Bb7 {[%clk 0:02:46]} 12. Nc3 {[%clk 0:02:56]}  Nc5 {[%clk 0:02:46]} 13. Bf3 {[%clk 0:02:55]}  Re8 {[%clk 0:02:46]} 14. Qc2 {[%clk 0:02:48]}  Qd7 {[%clk 0:02:42]} 15. h3 {[%clk 0:02:33]}  a4 {[%clk 0:02:32]} 16. b4 {[%clk 0:02:30]}  a3 {[%clk 0:02:31]} 17. Bc1 {[%clk 0:02:21]}  Nce4 {[%clk 0:02:21]} 18. Nxe4 {[%clk 0:02:17]}  Nxe4 {[%clk 0:02:20]} 19. Be3 {[%clk 0:02:15]}  f5 {[%clk 0:02:16]} 20. Rac1 {[%clk 0:02:05]}  Qa4 {[%clk 0:02:09]} 21. Qb1 {[%clk 0:02:00]}  Bxd4 {[%clk 0:01:53]} 22. Bxd4 {[%clk 0:02:01]}  Nd2 {[%clk 0:01:53]} 23. Qd3 {[%clk 0:02:00]}  Nxf1 {[%clk 0:01:53]} 24. Bc3 {[%clk 0:01:50]}  Qd7 {[%clk 0:01:42]} 25. Qd4 {[%clk 0:01:49]}  Re5 {[%clk 0:01:41]} 26. Qh4 {[%clk 0:01:48]}  Rae8 {[%clk 0:01:30]} 27. Rxf1 {[%clk 0:01:46]}  Qe7 {[%clk 0:01:26]} 28. Qf4 {[%clk 0:01:41]}  g5 {[%clk 0:01:21]} 29. Qd4 {[%clk 0:01:40]}  Bc8 {[%clk 0:01:18]} 30. Bh5 {[%clk 0:01:40]}  Rf8 {[%clk 0:01:16]} 31. f4 {[%clk 0:01:17]}  gxf4 {[%clk 0:01:14]} 32. Qxf4 {[%clk 0:01:12]}  Qg7 {[%clk 0:01:08]} 33. Rf3 {[%clk 0:01:09]}  Re4 {[%clk 0:01:03]} 34. Bxg7 {[%clk 0:00:47]}  Rxf4 {[%clk 0:01:03]} 35. Rg3 {[%clk 0:00:47]}  Rg4 {[%clk 0:00:55]} 36. Bxg4 {[%clk 0:00:45]}  Kxg7 {[%clk 0:00:53]} 37. Bxf5+ {[%clk 0:00:45]}  Kf6 {[%clk 0:00:45]} 38. Bxh7 {[%clk 0:00:29]}  Re8 {[%clk 0:00:41]} 39. Rxa3 {[%clk 0:00:28]}  Re2 {[%clk 0:00:39]} 40. Ra8 {[%clk 0:00:20]}  Bd7 {[%clk 0:00:34]} 41. Ra7 {[%clk 0:00:20]}  Re7 {[%clk 0:00:22]} 42. Bd3 {[%clk 0:00:17]}  Bf5 {[%clk 0:00:22]} 43. Bf1 {[%clk 0:00:14]}  Ke5 {[%clk 0:00:22]} 44. a4 {[%clk 0:00:13]}  Kd4 {[%clk 0:00:22]} 45. a5 {[%clk 0:00:13]}  bxa5 {[%clk 0:00:21]} 46. bxa5 {[%clk 0:00:14]}  Re1 {[%clk 0:00:21]} 47. Kf2 {[%clk 0:00:14]}  Ra1 {[%clk 0:00:21]} 48. a6 {[%clk 0:00:13]}  Ra2+ {[%clk 0:00:20]} 49. Kg3 {[%clk 0:00:14]}  Ra3+ {[%clk 0:00:20]} 50. Kf4 {[%clk 0:00:14]}  Bd3 {[%clk 0:00:20]} 51. Bxd3 {[%clk 0:00:13]}  Kxd3 {[%clk 0:00:21]} 52. Rxc7 {[%clk 0:00:13]}  Rxa6 {[%clk 0:00:21]} 53. Rc6 {[%clk 0:00:14]}  Ra4 {[%clk 0:00:21]} 54. Rxd6 {[%clk 0:00:14]}  Rxc4+ {[%clk 0:00:22]} 55. Kf5 {[%clk 0:00:15]}  Rc2 {[%clk 0:00:22]} 56. g4 {[%clk 0:00:15]}  Rf2+ {[%clk 0:00:22]} 57. Kg5 {[%clk 0:00:15]}  Ke4 {[%clk 0:00:23]} 58. Rf6 {[%clk 0:00:14]}  Rh2 {[%clk 0:00:22]} 59. h4 {[%clk 0:00:08]}  Kxd5 {[%clk 0:00:23]} 60. h5 {[%clk 0:00:08]}  Ke5 {[%clk 0:00:23]} 61. Rf5+ {[%clk 0:00:08]}  Ke6 {[%clk 0:00:23]} 62. h6 {[%clk 0:00:08]}  Rh1 {[%clk 0:00:22]} 63. Rf2 {[%clk 0:00:08]}  Ke7 {[%clk 0:00:21]} 64. Kg6 {[%clk 0:00:08]}  Ra1 {[%clk 0:00:21]} 65. Kg7 {[%clk 0:00:07]}  Ra7 {[%clk 0:00:20]} 66. Rf7+ {[%clk 0:00:06]}  Ke6 {[%clk 0:00:21]} 67. Rxa7 {[%clk 0:00:07]}  Ke5 {[%clk 0:00:21]} 68. h7 {[%clk 0:00:07]}  Ke4 {[%clk 0:00:22]} 69. h8=Q {[%clk 0:00:07]}  Ke3 {[%clk 0:00:23]} 70. Qh6+ {[%clk 0:00:07]}  Ke4 {[%clk 0:00:24]} 71. Ra4+ {[%clk 0:00:07]}  Kd3 {[%clk 0:00:25]} 72. Qd6+ {[%clk 0:00:07]}  Ke2 {[%clk 0:00:26]} 73. Ra3 {[%clk 0:00:06]}  Kf2 {[%clk 0:00:26]} 74. Qd2+ {[%clk 0:00:06]}  Kf1 {[%clk 0:00:27]} 75. Ra1# {[%clk 0:00:07]} 1-0


[Site "https://www.chess.com"]